Cogmind - Beta 13 @@@ ROGUE MODE // 2024.04.05 @ 10:31:17 Player: Fractal Result: Destroyed by G-47 Trooper with Particle Gun Performance ------------- Evolutions (0) 0 Regions Visited (2) 400 Robots Destroyed (6) 30 Value Destroyed (103) 103 Prototype IDs (0) 0 Alien Tech Used (0) 0 Bonus (0) 0 TOTAL SCORE: 533 Bonus ------- None Cogmind --------- Core Integrity 0/250 Matter 175/300 Energy 350/350 System Corruption 14% Temperature Warm (100) Movement Rolling (110) Ox2 Location -10/Mines Parts ------- > --- POWER (1) -------- (None) > --- PROPULSION (2) --- Wheel > --- UTILITY (2) ------ Large Storage Unit High-capacity Battery > --- WEAPON (2) ------- Beam Cannon Light Assault Rifle > --- INVENTORY (15) --- Wheel Wheel Wheel Compact Wheel Heat Sink Beam Cannon Mining Laser Stasis Trap (100%) Stasis Trap (100%) Peak State ------------ > --- POWER ------------ Light Ion Engine > --- PROPULSION ------- Wheel Wheel > --- UTILITY ---------- Large Storage Unit High-capacity Battery > --- WEAPON ----------- EM Pulse Gun Light Assault Rifle > --- INVENTORY -------- Wheel Wheel Wheel Wheel Compact Wheel Beam Cannon Beam Cannon Mining Laser Stasis Trap Stasis Trap [Rating: 8] Favorites ----------- Power Light Ion Engine Engine Light Ion Engine Propulsion Aluminum Leg Leg Aluminum Leg Wheel Wheel Utility Small Storage Unit Device Seismic Detector Storage Small Storage Unit Weapon Light Assault Rifle Energy Gun Small Laser Energy Cannon Beam Cannon Ballistic Gun Light Assault Rifle Special Weapon Mining Laser Build | -11 -10 -10 ------- Run | Yrd Mat Min Slots Evolved . | . . . Power . | . . . Propulsion . | . . . Utility . | . . . Weapon . | . . . Parts Attached 24 | 10 11 3 Power 4 | 2 2 . Engine 4 | 2 2 . Core . | . . . Reactor . | . . . Propulsion 7 | 2 4 1 Treads . | . . . Leg 2 | 2 . . Wheel 5 | . 4 1 Hover . | . . . Flight . | . . . Utility 4 | 2 2 . Device 1 | 1 . . Storage 3 | 1 2 . Processor . | . . . Hackware . | . . . Protection . | . . . Artifact . | . . . Weapon 9 | 4 3 2 Energy Gun 4 | 1 3 . Energy Cannon 1 | . . 1 Ballistic Gun 3 | 2 . 1 Ballistic Cannon . | . . . Launcher . | . . . Special Weapon 1 | 1 . . Impact Weapon . | . . . Slashing Weapon . | . . . Piercing Weapon . | . . . Special Melee Weapon . | . . . Unidentified Prototypes . | . . . Parts Lost 8 | 4 . 4 Power 2 | 1 . 1 Propulsion 3 | 1 . 2 Utility 1 | 1 . . Weapon 2 | 1 . 1 Highest Loss Streak 4 | 4 . 3 To Critical Strikes . | . . . Average Slot Usage (%) 89 | . 87 90 Engine 14 | . 14 14 Wheel 21 | . 21 21 Storage 26 | . 25 28 Energy Gun 8 | . 8 7 Energy Cannon 3 | . . 6 Ballistic Gun 12 | . 14 11 Naked Turns . | . . . Heaviest Build 31 | 11 30 31 Greatest Support 20 | 20 20 20 Greatest Overweight (x) 3 | 1 2 3 Average Overweight (x) . | . 1 1 Largest Inventory Capacity 15 | 8 15 15 Average Capacity 9 | 7 14 15 Most Carried 12 | 6 11 12 Average Carried 5 | 4 8 9 Final Capacity 15 | 8 15 15 Final Carried 9 | 6 8 9 Class Distribution -------------------- 100% | Mutant Dominant Class ---------------- Mutant | -10/Materials Mutant | -10/Mines Resources | -11 -10 -10 ----------- Run | Yrd Mat Min Matter Collected 391 | 283 . 108 Remotely . | . . . Salvage Created 178 | 70 . 108 Parts 13 | 9 . 4 Haulers Intercepted . | . . . Recyclers Shooed 1 | 1 . . Parts Field Recycled . | . . . Retrieved Matter . | . . . Parts Self-Destructed . | . . . Prevented . | . . . Kills | -11 -10 -10 ------- Run | Yrd Mat Min Combat Hostiles Destroyed 2 | . . 2 Cannons 2 | . . 2 Classes Destroyed 3 | 2 . 1 Worker 1 | 1 . . Tunneler 3 | 3 . . Grunt 2 | . . 2 Best Kill Streak 2 | 1 . 2 Combat Bots Only 2 | . . 2 Max Kills in Single Turn 1 | 1 . 1 Gunslinging . | . . . Exploded . | . . . Melee . | . . . Uniques/NPCs Destroyed . | . . . Combat | -11 -10 -10 -------- Run | Yrd Mat Min Hostile Shots Fired 57 | . 25 32 Missed 16 | . 9 7 Damage Taken 1034 | 509 191 334 Core 259 | 81 34 144 Absorbed by Shields . | . . . Core Remaining (%) 67 | 67 . . Volleys Fired 107 | 93 1 13 Largest 2 | 2 1 2 Hottest 140 | 140 40 80 Shots Fired 141 | 117 1 23 Gun 63 | 51 1 11 Cannon 12 | . . 12 Launcher . | . . . Special 66 | 66 . . Kinetic 40 | 30 . 10 Thermal 99 | 87 . 12 Explosive . | . . . Electromagnetic 2 | . 1 1 Robot Hit Streak 6 | 5 . 6 Robot Miss Streak 4 | 4 1 1 Penetration Max . | . . . Secondary Targets . | . . . Shots Hit Robots 43 | 24 . 19 Core Hits 17 | 10 . 7 Critical Kills 1 | 1 . . Critical Parts Destroyed . | . . . Critical Strikes 1 | 1 . . Destroy 1 | 1 . . Melee Attacks . | . . . Impact . | . . . Slashing . | . . . Piercing . | . . . Sneak Attacks . | . . . Combat Hostiles . | . . . Follow-up Attacks . | . . . Damage Inflicted 524 | 266 . 258 Guns 270 | 189 . 81 Cannons 177 | . . 177 Explosions . | . . . Melee . | . . . Ramming 5 | 5 . . Kinetic 213 | 145 . 68 Thermal 293 | 116 . 177 Explosive . | . . . Electromagnetic 13 | . . 13 Impact . | . . . Slashing . | . . . Piercing . | . . . Highest Corruption 14 | 14 14 14 Average Corruption 13 | 13 14 14 Corruption Purged . | . . . Corruption Blocked . | . . . Effects 35 | 18 8 9 Message Errors 7 | 3 2 2 Matter Fused 9 | 5 1 3 Heat Flow Errors 6 | 3 2 1 Energy Discharges 1 | 1 . . Parts Rejected 2 | . 1 1 Parts Fused 1 | 1 . . Data Loss (minor) 2 | 1 1 . Data Loss (major) 5 | 3 1 1 Alerts 1 | . . 1 Weapon Failures 1 | 1 . . Overload Shots . | . . . Overflow Damage 3 | . . 3 Projectiles 3 | . . 3 Explosions . | . . . Melee . | . . . Knockbacks . | . . . Impact . | . . . Kinetic . | . . . Secondary . | . . . Self-Inflicted Damage . | . . . Shots . | . . . Rammed . | . . . Targets Rammed 2 | 2 . . Kicked 2 | 2 . . Crushed . | . . . Highest Temperature 314 | 314 186 247 Average Temperature 103 | 102 72 115 Received Heat Transfer 297 | . 108 189 Effects 3 | 2 . 1 Energy Bleed 2 | 2 . . Interference 1 | . . 1 Siege Activations . | . . . Robots Corrupted . | . . . Combat Hostiles . | . . . Parts Fried . | . . . Impact Corruptions . | . . . Robots Melted . | . . . Combat Hostiles . | . . . Parts Melted . | . . . Heat Transferred 587 | 250 . 337 Parts Sabotaged . | . . . Parts Stolen . | . . . Parts Stripped . | . . . Power Chain Reactions . | . . . Alert | -11 -10 -10 ------- Run | Yrd Mat Min Peak Influence 129 | 10 115 129 Initial 44 | . 3 44 Average 19 | 4 30 82 Maximum Alert Level . | . . . Low Security (%) 100 | 100 100 100 Level 1 . | . . . Level 2 . | . . . Level 3 . | . . . Level 4 . | . . . Level 5 . | . . . High Security . | . . . Max Security . | . . . Squads Dispatched 1 | . 1 . Investigation . | . . . Extermination . | . . . Reinforcement 1 | . 1 . Assault . | . . . Garrison . | . . . Intercept . | . . . Searches Triggered . | . . . Construction Impeded . | . . . Haulers Reinforced . | . . . Active Scanning Responses . | . . . Cargo Convoy Interrupts . | . . . Stealth | -11 -10 -10 --------- Run | Yrd Mat Min Distress Signals . | . . . Communications Jammed . | . . . Distress Signals . | . . . Times Spotted 19 | . 13 6 Peak Tracking Total 8 | . 8 2 Tactical Retreats 3 | . 2 1 Traps | -11 -10 -10 ------- Run | Yrd Mat Min Traps Triggered 2 | . 2 . Indirectly . | . . . Trap Hack Attempts . | . . . Triggered . | . . . Disarmed . | . . . Reprogrammed . | . . . Reused 2 | . . 2 Traps Extracted . | . . . Installed 2 | . . 2 Triggered 2 | . . 2 Most Traps Carried 4 | . . 4 Machines | -11 -10 -10 ---------- Run | Yrd Mat Min Machines Disabled . | . . . Max in Single Turn . | . . . Machines Repaired . | . . . Machines Dismantled . | . . . Machines Sabotaged . | . . . Overloaded Fab Kills . | . . . Hacking | -11 -10 -10 --------- Run | Yrd Mat Min Machines Accessed 1 | . 1 . Terminals 1 | . 1 . Fabricators . | . . . Repair Stations . | . . . Recycling Units . | . . . Scanalyzers . | . . . Garrison Access . | . . . Total Hacks 3 | . 3 . Successful 1 | . 1 . Failed 2 | . 2 . Catastrophic . | . . . Database Lockouts . | . . . Manual 2 | . 2 . Terminals 3 | . 3 . Fabricators . | . . . Repair Stations . | . . . Recycling Units . | . . . Scanalyzers . | . . . Garrison Access . | . . . Terminal Hacks 1 | . 1 . Branch Access Points 1 | . 1 . Fabricator Hacks . | . . . Repair Station Hacks . | . . . Recycling Unit Hacks . | . . . Scanalyzer . | . . . Garrison Access Hacks . | . . . Unauthorized Hacks . | . . . Terminals . | . . . Fabricators . | . . . Repair Stations . | . . . Recycling Units . | . . . Scanalyzers . | . . . Garrison Access . | . . . Data Cores Recovered . | . . . Used . | . . . Hacking Detections . | . . . Full Trace Events . | . . . Feedback Events . | . . . Feedback Blocked . | . . . Robot Schematics Acquired . | . . . Robots Built . | . . . Authchips . | . . . Time . | . . . Total Robot Build Rating . | . . . Part Schematics Acquired . | . . . Parts Built . | . . . Authchips . | . . . Time . | . . . Total Part Build Rating . | . . . Parts Repaired . | . . . Time . | . . . Parts Recycled . | . . . Recycled Matter . | . . . Retrieved Matter . | . . . Retrieved Components . | . . . Parts Scanalyzed . | . . . Part Schematics Acquired . | . . . Parts Damaged . | . . . Bothacking | -11 -10 -10 ------------ Run | Yrd Mat Min Used RIF Installer . | . . . Robots Hacked . | . . . Non-combat . | . . . Combat . | . . . Robot Hacks Applied . | . . . Relay Couplers Released . | . . . Fabnet Peak Effective % . | . . . Robots Rewired . | . . . Allies Hacked . | . . . Hacks Repelled . | . . . Allies | -11 -10 -10 -------- Run | Yrd Mat Min Total Allies . | . . . Largest Group . | . . . Highest-Rated Group . | . . . Highest-Rated Ally . | . . . Total Orders . | . . . Ally Attacks . | . . . Total Damage . | . . . Kills . | . . . Allies Corrupted . | . . . Allies Melted . | . . . Intel | -11 -10 -10 ------- Run | Yrd Mat Min Robot Analysis Total . | . . . Derelict Logs Recovered . | . . . Drone Launches . | . . . Drone Recoveries . | . . . Exploration | -11 -10 -10 ------------- Run | Yrd Mat Min Turns Passed 1322 | 943 185 194 Spaces Moved 764 | 462 156 146 Core 19 | 19 . . Treads . | . . . Legs 451 | 443 8 . Wheels 294 | . 148 146 Hover . | . . . Flight . | . . . Fastest Speed 50 | 50 95 95 Average Speed 111 | 118 102 102 Slowest Speed 260 | 120 260 125 Overloaded Moves . | . . . Propulsion Burnouts . | . . . Robots Hopped . | . . . Cave-ins Triggered 2 | 2 . . Exploration Rate (%) 27 | 30 28 24 Regions Visited 2 Branch Regions 1 Pre-discovered Areas . | . . . Known Exits Taken 1 | . 1 . Unknown Exits Taken 1 | 1 . . Scrap Searched . | . . . Spaces Dug 35 | 35 . . Terrain Destroyed 43 | 43 . . Melee . | . . . Projectile 43 | 43 . . AOE . | . . . Terrain Rammed . | . . . Walls Destroyed . | . . . Machines Disabled . | . . . Actions | -11 -10 -10 --------- Run | Yrd Mat Min Total 962 | 611 180 171 Wait 36 | 36 . . Move 761 | 460 155 146 Hop . | . . . Pick Up 22 | 8 9 5 Fast Attach 11 | 7 3 1 Attach 13 | 3 8 2 Detach 4 | 1 3 . Swap . | . . . Drop 3 | . 1 2 Fire 107 | 93 1 13 Melee . | . . . Ram . | . . . Kick 2 | 2 . . Crush . | . . . Escape Stasis 1 | 1 . . Rewire . | . . . Trap 2 | . . 2 Miscellaneous . | . . . Route ------- -11/Scrapyard -10/Materials (discovered 2 exits: [*Mat] / *Min) -10/Mines History --------- Turn | Location | Event 22 | -11/Scrapyard | Discovered new exit (range 15) 519 | -11/Scrapyard | Crushed by falling debris 519 | -11/Scrapyard | System corruption reached 10% 526 | -11/Scrapyard | Crushed by falling debris 557 | -11/Scrapyard | Lost 4 parts (1p1n1u1w) 944 | -11/Scrapyard | Entered Materials 945 | -10/Materials | Build established: Mutant 987 | -10/Materials | Identified exit to Mines 1042 | -10/Materials | Discovered new exit (range 13) 1129 | -10/Materials | Entered Mines 1179 | -10/Mines | Found a hidden stash of uninstalled traps 1233 | -10/Mines | Core integrity fell below 50% 1271 | -10/Mines | Lost 3 parts (2n1w) 1314 | -10/Mines | Core integrity fell below 20% 1323 | -10/Mines | Destroyed by G-47 Trooper with Particle Gun Last Messages --------------- Destroyed Lgt. Nuclear Core. System corrupted: Lgt. Assault Rifle rejected. G-34 Mercenary IFF system glitched. Dropped Stasis Trap. Installed Stasis Trap. G-47 Trooper triggered Stasis Trap. A bubble of rippling energy engulfs the area. Field strength at 84. G-47 Trooper destroyed. G-34 Mercenary destroyed. Acquired 58 matter. System corrupted: Substantial component data lost. Acquired 50 matter. Acquired Heat Sink. Acquired Lgt. Assault Rifle. HT:ENQHMM48HI:HQXAWVPU QWINJM U-05 Engineer lays Concrete. System corrupted: Matter fused (-8). Lgt. Ion Engine destroyed. Map ----- +----------------------------------------------------+ | ????????????## #???????# #???? | | ???????????## ##???????# #???? | | ???????????# ##???????# #???? | | ???????????# ##??????#= #???? | | ???????????# ###????# #???? | | ???????????# ######^ #???? | | ???????????## =[#???? | | ????????????## #???? | | ?????????????## #######???? | | ??????????????## ##?????????? | | ???????????????### ##??????????? | | ?????????????????# #???????????? | | ?????????????????# #???????????? | | ?????????????????# #???????????? | | ?????????????????# #???????????? | | ?????????????????# ########????? | | ?????????????????# #????? | | ?????????????????######## #????? | | ????????????????????????# #????? | | ????????????????????????# #????? | | ????????????????????????# #????? | | ????????????????????????# #????? | | ????????????????????????# #????? | | ????????????????????????# #????? | | ????????????????????????# #????? | | ????????????????????????#@#????? | | ??????????????????????? ???? | | ??????????????????????# g #?? | | ??????????????????????# """ #?? | | ??????????????????????# g""" #?? | | ??????????????????????# """ #?? | | ??????????????????????# #?? | | ??????????????????????########?? | | ???????????????????????????????? | | ???????????????????????????????? | | ???????????????????????????????? | | ???????????????????????????????? | | ???????????????????????????????? | | ???????????????????????????????? | | ???????????????????????????????? | | ???????????????????????????????? | | ???????????????????????????????? | | ???????????????????????????????? | | ???????????????????????????????? | | ???????????????????????????????? | | ???????????????????????????????? | | ???????????????????????????????? | | | | | | | +----------------------------------------------------+ Best States ------------- Heat Dissipation 25 Energy Generation 10 Energy Capacity 375 Matter Stores 300 Matter Capacity 300 Sight Range 16 Terrain Scan Density 10 Evasion (%) 55 Item Schematics ----------------- None Robot Schematics ------------------ None Fabricated ------------ Nothing Alien Tech Used ----------------- None Achievements -------------- System Compromised Unlikely Earthworm Challenges ------------ None Game ------ Seed GunBiomechanicalReplicator Manual? 0 Play Time 00:19:23 Cumulative 6.6 hours Start 2024.04.05 @ 10:11:25 End 2024.04.05 @ 10:31:17 Sessions 1 Manual Loads 0 Difficulty Rogue Special Mode None Game No. 6 Rogue 6 Adventurer 0 Explorer 0 Win Type - Total 0 Types 0/0/0/0/0/0/0/0/0 Lore% 15 Gallery% 9 Achievement% 8 Wizard Run 0 Options --------- Layout 1 ASCII 0 Keyboard 1 Movement Numpad Keybinds 0 Fullscreen 1 Font 48/Terminus Map View 50x35 Zoom Use 0% Tactical HUD 0 Map Filters NONE Filters NONE Steam 1 RUN: d0a0dd9a-f601-4582-bb39-952cb52cdd9b